bitfinex-derivatives/quotes_SOLF0:USTF0_20251210
["timestamp","ask_amount","ask_price","bid_price","bid_amount"]
[1765397455397,100.5252,139.26,139.15,100.6019]
[1765397455679,6.4624,139.26,139.17,6.466]
[1765397456281,100.5166,139.27,139.17,6.466]
[1765397456282,0.04807665,139.23,139.2,0.04523144]
[1765397456483,100.4537,139.36,139.22,100.5503]
[1765397456700,100.4537,139.36,139.25,6.87919335]
[1765397456890,6.87919335,139.52,139.27,100.5129]
[1765397457195,100.4243,139.4,139.29,100.501]
[1765397457387,0.04953582,139.36,139.33,0.04841601]
[1765397457586,6.4559,139.4,139.33,0.04841601]
[1765397457796,100.4015,139.43,139.33,0.04841601]
[1765397457985,6.4555,139.41,139.33,6.4586]
[1765397458387,6.4555,139.41,139.32,162.4758]
[1765397458585,100.3807,139.46,139.32,62.0]
[1765397458791,100.3807,139.46,139.35,0.05383685]
[1765397458792,0.00387519,139.38,139.35,0.05383685]
[1765397458999,100.3868,139.45,139.33,100.4724]
[1765397459202,100.4087,139.42,139.33,6.87919335]
[1765397459400,100.4014,139.43,139.33,6.87919335]
[1765397459596,100.4009,139.43,139.34,6.4581]
[1765397459799,100.47424479,139.4,139.37,0.04811627]
[1765397460195,6.4565,139.39,139.37,0.04811627]
[1765397460494,0.05164479,139.4,139.37,0.04811627]
[1765397460799,100.3971,139.44,139.37,0.04811627]
[1765397460800,107.22379335,139.51,139.39,6.87919335]
[1765397461008,100.365,139.48,139.39,6.87919335]
[1765397461397,100.3317,139.53,139.42,100.4061]
[1765397461698,0.0441001,139.49,139.46,0.05426786]
[1765397463294,100.3731,139.47,139.35,28.87904996]
[1765397463496,6.87919335,139.45,139.35,21.99985661]
[1765397463702,60.94,139.5,139.38,6.4561]
[1765397464194,107.22439335,139.51,139.39,100.4268]
[1765397464395,107.17939335,139.57,139.44,100.43962464]
[1765397464595,100.3144,139.55,139.43,100.396]
[1765397464990,6.4484,139.56,139.47,6.4521]
[1765397465197,106.7558,139.56,139.45,100.3843]
[1765397465398,0.04927561,139.52,139.49,0.05414313]
[1765397466805,100.3442,139.51,139.44,60.9]
[1765397467010,100.3584,139.49,139.38,107.31349335]
[1765397467205,106.8174,139.48,139.37,161.3215]
[1765397467406,100.3651,139.48,139.39,6.4558]
[1765397467608,107.23759335,139.49,139.39,6.4558]
[1765397467913,0.04919015,139.45,139.43,0.05030319]
[1765397468504,100.3972,139.44,139.37,60.88]
[1765397468711,107.26469335,139.46,139.37,60.88]
[1765397468909,100.353,139.5,139.39,100.429]
[1765397469107,6.4511,139.5,139.4,6.4554]
[1765397469405,100.3359,139.53,139.42,100.4077]
[1765397469606,6.87919335,139.55,139.45,100.384]
[1765397469812,6.87919335,139.55,139.43,100.3959]
[1765397469813,0.05155834,139.49,139.43,100.3959]
[1765397470115,0.05155834,139.49,139.45,0.04721849]
[1765397470308,107.17239335,139.58,139.47,100.3701]
[1765397470503,6.87919335,139.58,139.48,100.3641]
[1765397470706,6.87919335,139.58,139.49,6.4511]
[1765397471101,6.87919335,139.58,139.5,100.3502]
[1765397471403,6.87919335,139.64,139.55,100.3124]
[1765397472100,3.24532475,139.69,139.56,100.3026]
[1765397472307,6.87919335,139.65,139.61,0.0467026]
[1765397472611,6.87919335,139.65,139.52,100.3314]
[1765397472612,6.87919335,139.62,139.52,162.3314]
[1765397473109,107.17159335,139.59,139.51,60.86]
[1765397473416,6.87919335,139.56,139.46,100.3791]
[1765397473796,0.05440944,139.52,139.5,0.0518601]
[1765397473997,0.04962265,139.52,139.5,0.04538025]
[1765397474611,6.87919335,139.61,139.51,60.84]
[1765397474908,13.32679335,139.58,139.51,60.84]
[1765397475132,6.87919335,139.58,139.51,60.84]
[1765397475596,0.05219583,139.56,139.53,0.04762096]
[1765397476308,6.87919335,139.6,139.53,0.04762096]
[1765397476511,107.16119335,139.6,139.53,0.04762096]
[1765397476710,6.87919335,139.57,139.53,0.04762096]
[1765397476913,100.3236,139.54,139.48,60.84]
[1765397477101,100.2931,139.58,139.47,6.87919335]
[1765397477411,100.3147,139.55,139.45,60.82]
[1765397477899,0.04834959,139.51,139.49,0.04656322]
[1765397478102,100.2898,139.59,139.49,0.04656322]
[1765397478310,100.3026,139.57,139.45,161.2046]
[1765397478509,82.51,139.67,139.45,161.2046]
[1765397478510,107.13899335,139.63,139.49,6.87919335]
[1765397478897,100.2523,139.64,139.52,6.87919335]
[1765397479099,100.2429,139.65,139.53,100.3241]
[1765397479304,3.24532475,139.69,139.62,100.264]
[1765397479507,3.24532475,139.69,139.58,100.292]
[1765397479508,3.24532475,139.69,139.64,0.05229527]
[1765397479903,100.2314,139.67,139.53,100.3222]
[1765397480107,100.2246,139.68,139.54,161.1385]
[1765397480108,100.2388,139.66,139.54,161.1385]
[1765397480413,3.24532475,139.69,139.59,6.87919335]
[1765397480602,6.4439,139.66,139.59,6.87919335]
[1765397481005,0.05229527,139.64,139.61,0.04854014]
[1765397481409,6.4458,139.62,139.54,60.82]
[1765397481713,100.255,139.64,139.52,100.3345]
[1765397481905,100.2575,139.63,139.53,6.87919335]
[1765397482099,6.4452,139.63,139.53,6.87919335]
[1765397482300,0.04861123,139.59,139.57,0.04685018]
[1765397484803,0.04861123,139.59,139.49,100.3571]
[1765397485009,100.2569,139.63,139.54,6.87919335]
[1765397485311,100.2388,139.66,139.55,60.8]
[1765397485508,3.24532475,139.69,139.58,6.4471]
[1765397485708,0.05083046,139.65,139.62,0.05447914]
[1765397486109,0.05083046,139.65,139.63,6.87919335]
[1765397487124,0.05083046,139.65,139.63,13.32389335]
[1765397487418,0.05083046,139.65,139.62,6.93367249]
[1765397488016,0.00083046,139.65,139.62,68.93367249]
[1765397488320,0.00083046,139.65,139.62,169.19357249]
[1765397488513,0.00083046,139.65,139.62,170.63357249]
[1765397488715,0.00083046,139.65,139.63,106.7016]
[1765397488916,0.00083046,139.65,139.64,6.87919335]
[1765397489726,3.24532475,139.69,139.66,6.4433]
[1765397490013,3.24532475,139.69,139.63,6.87919335]
[1765397490212,3.24532475,139.69,139.66,6.87919335]
[1765397490412,3.24532475,139.69,139.64,6.4443]
[1765397490806,6.4404,139.74,139.67,6.4429]
[1765397491003,105.1741,139.75,139.66,6.87919335]
[1765397491216,100.1867,139.73,139.63,6.87919335]
[1765397491420,5.0,139.75,139.65,100.239]
[1765397491620,5.0,139.75,139.69,6.87919335]
[1765397491819,5.0,139.75,139.71,0.05364121]
[1765397491820,0.04460516,139.73,139.71,0.05364121]
[1765397492405,5.0,139.75,139.72,6.87919335]
[1765397492606,100.0863,139.87,139.73,100.1835]
[1765397492811,106.94569335,139.9,139.77,6.87919335]
[1765397493011,100.0511,139.92,139.8,6.87919335]
[1765397493226,106.49,139.91,139.8,6.87919335]
[1765397493416,106.49,139.91,139.84,0.04985237]
[1765397493611,100.0357,139.94,139.84,0.04985237]
[1765397493818,100.0357,139.94,139.88,0.046573]
[1765397494013,100.0646,139.9,139.79,60.76]
[1765397494413,100.0638,139.9,139.79,60.76]
[1765397494824,100.0945,139.86,139.74,6.87919335]
[1765397495027,0.046573,139.81,139.79,0.05204228]
[1765397495321,6.87919335,139.91,139.79,100.19524406]
[1765397495521,6.87919335,139.91,139.79,100.1419]
[1765397495719,6.87919335,139.91,139.79,162.1419]
[1765397496113,100.0448,139.93,139.8,106.5713]
[1765397496319,100.0421,139.93,139.85,0.0477844]
[1765397496521,100.0651,139.9,139.85,0.0477844]
[1765397496919,100.0421,139.93,139.85,0.0477844]
[1765397497127,100.0348,139.94,139.85,0.0477844]
[1765397497320,6.87919335,139.95,139.88,0.04604969]
[1765397497518,6.4308,139.94,139.88,0.04604969]
[1765397497723,6.87919335,139.96,139.9,0.05126739]
[1765397497927,100.0213,139.96,139.92,0.04890118]
[1765397498137,160.7743,139.97,139.78,6.87919335]
[1765397498138,100.0645,139.9,139.78,6.87919335]
[1765397498324,100.0648,139.9,139.78,67.59919335]
[1765397498519,100.0723,139.89,139.78,67.59919335]
[1765397498832,100.0723,139.89,139.74,100.1722]
[1765397498833,100.0856,139.87,139.75,13.31839335]
[1765397499130,106.96269335,139.88,139.8,0.05458681]
[1765397499131,0.04506107,139.82,139.8,0.05458681]
[1765397499422,0.04509282,139.82,139.8,0.047009]
[1765397499622,100.16759282,139.82,139.8,0.047009]
[1765397499816,101.60759282,139.82,139.8,0.047009]
[1765397500016,106.5813,139.79,139.69,60.72]
[1765397500217,100.1225,139.82,139.7,100.2036]
[1765397500417,200.1952,139.86,139.73,100.1817]
[1765397500418,260.9552,139.86,139.73,100.1817]
[1765397500616,260.9552,139.86,139.75,107.04829335]
[1765397501024,0.05041922,139.82,139.79,0.04617931]
[1765397501620,0.05041922,139.82,139.79,100.18657931]
[1765397501819,100.0577,139.91,139.79,100.18657931]
[1765397502020,67.61919335,139.93,139.8,100.1294]
[1765397502215,67.61919335,139.93,139.81,100.1254]
[1765397502420,167.66189335,139.93,139.81,107.00459335]
[1765397502816,0.0416826,139.88,139.86,0.05259629]
[1765397503020,0.0416826,139.88,139.86,0.05483339]
[1765397505327,0.0416826,139.88,139.77,107.03439335]
[1765397505328,101.5403826,139.88,139.75,107.04709335]
[1765397505530,106.5177,139.88,139.76,100.1594]
[1765397506123,6.4345,139.86,139.75,107.04979335]
[1765397506324,0.04520018,139.82,139.79,0.05037839]
[1765397507728,100.0541,139.92,139.8,100.1347]
[1765397507936,6.4327,139.9,139.8,6.4369]
[1765397508428,6.4334,139.89,139.8,6.4369]
[1765397508634,111.91097356,139.94,139.82,100.1192]
[1765397508827,100.0456,139.93,139.81,100.1277]
[1765397509137,11.87367356,139.88,139.78,6.4381]
[1765397509431,11.87367356,139.88,139.74,200.3503]
[1765397509432,100.085,139.87,139.74,200.3503]
[1765397509830,6.4355,139.84,139.76,6.4389]
[1765397510028,0.05195984,139.81,139.79,0.04742308]
[1765397510334,0.05195984,139.81,139.73,60.7]
[1765397510630,0.05195984,139.81,139.71,100.1963]
[1765397510832,100.1524,139.78,139.65,100.2406]
[1765397511132,100.121,139.82,139.7,100.25908364]
[1765397511323,0.04597617,139.77,139.75,0.05121746]
[1765397511632,0.0539057,139.77,139.75,0.05121746]
[1765397512637,67.1551,139.85,139.75,100.22161746]
[1765397512828,60.72,139.85,139.75,100.1704]
[1765397513028,60.72,139.85,139.74,100.1742]
[1765397513233,67.1549,139.85,139.76,6.4387]
[1765397513622,0.05014139,139.82,139.79,0.0520514]
[1765397517735,0.05014139,139.82,139.79,6.4894514]
[1765397519239,0.05014139,139.82,139.79,0.0520514]
[1765397519436,0.05014139,139.82,139.79,100.1936514]
[1765397519638,0.05014139,139.82,139.8,6.4368]
[1765397519842,0.05014139,139.82,139.8,106.5712]
[1765397520236,1.24421245,139.93,139.84,6.4352]
[1765397520437,172.62317356,139.95,139.84,6.4352]
[1765397520626,100.057,139.91,139.79,100.1416]
[1765397520831,100.0649,139.9,139.78,67.138]
[1765397521037,60.72,139.95,139.84,100.1032]
[1765397521234,0.04365344,139.91,139.88,0.04747232]
[1765397521437,0.04365344,139.91,139.89,6.4327]
[1765397521631,16.87367356,140.0,139.89,100.0701]
[1765397521942,116.86867356,140.0,139.88,100.0776]
[1765397522234,5.0,140.0,139.89,100.0693]
[1765397522540,104.9937,140.0,139.87,100.0798]
[1765397522844,5.0,140.0,139.92,6.4771015]
[1765397523526,5.0,140.0,139.93,6.4309]
[1765397523730,5.0,140.0,139.95,0.04742413]
[1765397524539,5.0,140.0,139.89,100.0683]
[1765397524836,4.60569329,140.0,139.93,100.0413]
[1765397525035,4.60569329,140.0,139.96,100.0201]
[1765397525239,4.60569329,140.0,139.97,6.429]
[1765397525433,4.65311742,140.0,139.97,6.48341683]
[1765397525639,1.77856693,140.06,139.97,0.05441683]
[1765397525852,1.77856693,140.06,140.01,6.4273]
[1765397526030,6.693e-05,140.06,140.04,99.9617]
[1765397526342,111.73897356,140.18,140.05,99.9559]
[1765397526343,99.8715,140.17,140.05,99.9559]
[1765397526547,99.864,140.18,140.06,99.9483]
[1765397526746,99.8719,140.17,140.11,0.04539363]
[1765397526941,99.8872,140.15,140.02,99.9751]
[1765397527136,99.9278,140.09,139.97,100.0133]
[1765397527336,99.9427,140.07,139.94,100.0319]
[1765397527660,99.9208,140.1,139.97,100.01]
[1765397527856,0.04539363,140.05,140.02,0.05158565]
[1765397528545,0.04539363,140.05,140.03,106.395]
[1765397528747,60.68,140.17,140.08,99.9342]
[1765397529049,6.4187,140.21,140.11,6.4229]
[1765397529248,60.68,140.24,140.12,99.9045]
[1765397529546,6.4179,140.23,140.12,106.3282]
[1765397529738,60.68,140.24,140.16,0.05128651]
[1765397530835,99.8209,140.24,140.16,0.05128651]
[1765397531040,5.0,140.25,140.17,99.8701]
[1765397531243,99.728,140.38,140.26,99.8048]
[1765397531438,99.7384,140.36,140.31,0.05445021]
[1765397531748,122.42826587,140.38,140.31,0.05445021]
[1765397531944,99.7441,140.35,140.24,11.87367356]
[1765397532147,99.7682,140.32,140.19,199.7058]
[1765397532451,121.234,140.31,140.18,111.73567356]
[1765397532636,60.64,140.34,140.23,99.8254]
[1765397532945,60.64,140.34,140.22,99.8304]
[1765397533150,0.0526907,140.3,140.27,0.04860342]
[1765397534452,101.2535907,140.3,140.25,3.26673]
[1765397534743,99.7809,140.3,140.25,3.26673]
[1765397535052,99.8033,140.27,140.25,3.96e-05]
[1765397535350,106.2717424,140.27,140.25,0.05165081]
[1765397535547,0.0525424,140.27,140.25,0.05165081]
[1765397537146,0.0525424,140.27,140.12,99.9036]
[1765397537147,99.8199,140.25,140.12,99.9036]
[1765397537438,99.8199,140.25,140.11,99.9112]
[1765397537439,99.8366,140.22,140.09,99.9268]
[1765397537642,99.8366,140.22,140.08,99.9335]
[1765397537643,99.8502,140.2,140.08,99.9335]
[1765397537837,99.8672,140.18,140.07,60.58]
[1765397538044,99.9046,140.13,139.98,131.65655491]
[1765397538243,99.8726,140.17,140.04,99.9595]
[1765397538439,99.9064,140.12,140.0,99.9877]
[1765397538741,0.05078974,140.07,140.05,0.04524419]
[1765397538943,0.05393242,140.07,140.05,0.04524419]
[1765397539660,99.8446,140.21,140.06,99.942]
[1765397539952,99.8405,140.22,140.06,106.3671]
[1765397540148,99.8405,140.22,140.07,99.9386]
[1765397540550,0.05001267,140.16,140.13,0.05186639]
[1765397540850,0.05001267,140.16,140.13,0.04971629]
[1765397540851,0.05369513,140.16,140.13,0.04971629]
[1765397541249,99.8029,140.27,140.13,0.04971629]
[1765397541442,60.58,140.28,140.14,99.8908]
[1765397541645,99.8028,140.27,140.11,99.9102]
[1765397541857,99.8131,140.26,140.11,99.9104]
[1765397542050,160.3752,140.28,140.12,99.9031]
[1765397542245,166.7907,140.28,140.13,106.3172]
[1765397542556,0.04703729,140.21,140.19,0.04800295]
[1765397542763,0.04703729,140.21,140.19,0.05096131]
[1765397544065,99.7675,140.32,140.19,0.05096131]
[1765397544261,99.7572,140.33,140.19,6.4191]
[1765397544461,6.4129,140.33,140.19,106.2749]
[1765397544659,99.7502,140.34,140.2,99.8483]
[1765397544857,99.7319,140.37,140.22,99.8334]
[1765397545055,102.8414147,140.43,140.28,0.04785799]
[1765397545270,3.1537147,140.43,140.35,31.65095491]
[1765397545565,3.1537147,140.43,140.3,99.7777]
[1765397545862,3.1537147,140.43,140.37,0.0544759]
[1765397546761,109.2514147,140.43,140.37,0.0544759]
[1765397547065,3.1537147,140.43,140.34,131.39915491]
[1765397547260,3.1537147,140.43,140.35,99.7407]
[1765397547457,1.47e-05,140.43,140.41,199.3919]
[1765397547659,5.0,140.5,140.42,99.6925]
[1765397547858,0.04926958,140.47,140.45,0.0482356]
[1765397548358,0.04926958,140.47,140.35,99.7404]
[1765397548562,99.661,140.47,140.33,99.7534]
[1765397548768,99.661,140.47,140.31,99.7697]
[1765397548769,99.6673,140.46,140.31,99.7697]
[1765397549068,99.6866,140.43,140.3,31.65095491]
[1765397549263,99.7038,140.41,140.27,99.797]
[1765397549567,0.05320072,140.36,140.33,0.04832164]
[1765397549770,0.04948117,140.36,140.33,0.04871704]
[1765397549966,99.6467,140.49,140.35,99.7367]
[1765397550176,99.6506,140.48,140.35,131.38765491]
[1765397550379,6.4062,140.48,140.36,6.4115]
[1765397550580,106.0583,140.48,140.35,31.65095491]
[1765397550877,104.6363,140.5,140.36,106.1436]
[1765397551080,0.04640934,140.44,140.42,0.05140902]
[1765397551276,5.0,140.5,140.42,106.14980902]
[1765397551575,5.0,140.5,140.42,0.05140902]
[1765397553878,5.0,140.5,140.42,99.73930902]
[1765397554178,5.0,140.5,140.42,0.05140902]
[1765397555377,99.6676,140.46,140.34,31.65095491]
[1765397555578,11.4051,140.5,140.34,131.40045491]
[1765397555970,11.4051,140.5,140.34,137.81245491]
[1765397556165,11.4051,140.5,140.35,99.7419]
[1765397556166,5.0,140.5,140.35,99.7419]
[1765397556365,0.04842422,140.44,140.41,0.05035634]
[1765397556673,0.04545632,140.44,140.41,0.05433713]
[1765397556872,5.0,140.5,140.41,0.05433713]
[1765397557073,5.0,140.5,140.42,31.65095491]
[1765397557278,5.0,140.5,140.4,99.7034]
[1765397557573,5.0,140.5,140.37,31.65095491]
[1765397557980,5.0,140.5,140.42,0.04883843]
[1765397558179,199.0795,140.64,140.48,99.6498]
[1765397558374,99.5512,140.62,140.48,31.65095491]
[1765397558566,105.9535,140.62,140.55,0.05352565]
[1765397558769,105.9535,140.62,140.48,31.65095491]
[1765397558770,99.5662,140.6,140.48,31.65095491]
[1765397558976,6.4011,140.59,140.48,31.65095491]
[1765397559170,159.9837,140.66,140.48,31.65095491]
[1765397559371,99.5473,140.63,140.51,31.65095491]
[1765397559771,0.05321194,140.58,140.56,0.04626773]
[1765397559975,0.04867986,140.58,140.56,0.04626773]
[1765397560374,6.3965,140.69,140.56,33.11722264]
[1765397560575,6.3965,140.69,140.56,31.65095491]
[1765397561177,99.5227,140.66,140.53,31.65095491]
[1765397561477,99.5584,140.61,140.58,0.05273266]
[1765397561675,6.4014,140.59,140.51,60.44]
[1765397561877,99.5723,140.59,140.47,31.65095491]
[1765397562077,28.18670622,186.68,140.55,31.65095491]
[1765397562078,99.5171,140.67,140.55,31.65095491]
[1765397562385,99.5079,140.69,140.55,31.65095491]
[1765397562574,99.4881,140.71,140.61,0.04697329]
[1765397562884,0.04611535,140.67,140.65,0.05440772]
[1765397563085,5.0,140.75,140.65,0.0502734]
[1765397563381,5.0,140.75,140.69,6.3961]
[1765397563685,5.0,140.75,140.67,31.65095491]
[1765397563870,5.0,140.75,140.67,137.56355491]
[1765397564076,99.3969,140.84,140.73,31.65095491]
[1765397564278,99.3667,140.89,140.73,31.65095491]
[1765397564279,99.3667,140.89,140.77,0.04880404]
[1765397564469,99.3557,140.9,140.82,0.05096442]
[1765397564671,99.3787,140.87,140.76,31.65095491]
[1765397565179,99.4097,140.82,140.68,131.15785491]
[1765397565382,99.3994,140.84,140.72,31.65095491]
[1765397565677,105.7936,140.83,140.77,0.0523268]
[1765397565878,99.4136,140.82,140.72,31.65095491]
[1765397566083,105.8046,140.82,140.68,105.9044]
[1765397566284,166.2046,140.82,140.68,105.9044]
[1765397566478,159.7907,140.85,140.7,99.494]
[1765397566680,159.7907,140.85,140.71,62.0]
[1765397566982,0.04981607,140.79,140.77,0.05327422]
[1765397567178,0.0500553,140.79,140.77,0.05327422]
[1765397567577,99.37,140.88,140.77,33.12422913]
[1765397567779,99.3891,140.85,140.74,31.65095491]
[1765397567979,60.38,140.91,140.75,99.4548]
[1765397568188,60.38,140.91,140.78,31.65095491]
[1765397568189,99.354,140.9,140.78,31.65095491]
[1765397568686,0.0512996,140.85,140.83,0.05209584]
[1765397568887,0.05293268,140.85,140.78,18.03486358]
[1765397569276,0.05293268,140.85,140.74,18.03486358]
[1765397569471,6.3888,140.86,140.73,105.8668]
[1765397569877,0.0462682,140.81,140.78,0.05361907]
[1765397571389,99.3261,140.94,140.8,99.4227]
[1765397571585,99.3261,140.94,140.82,18.03486358]
[1765397571991,105.7182,140.93,140.82,18.03486358]
[1765397572180,99.3252,140.94,140.82,18.03486358]
[1765397572381,0.04970772,140.89,140.87,0.04602916]
[1765397572692,0.05231709,140.89,140.87,0.04602916]
[1765397572989,0.05231709,140.89,140.8,99.4224]
[1765397573183,99.3274,140.94,140.79,99.4272]
[1765397573378,99.3564,140.9,140.78,18.03486358]
[1765397573579,99.3745,140.87,140.74,18.03486358]
[1765397573784,0.04849756,140.82,140.79,0.0490861]
[1765397574185,107.26949756,140.82,140.71,60.38]
[1765397574386,99.4476,140.77,140.67,18.03486358]
[1765397574583,105.8263,140.79,140.67,18.03486358]
[1765397574986,99.4474,140.77,140.67,18.03486358]
[1765397575289,0.05228707,140.73,140.71,0.04961698]
[1765397576090,0.05228707,140.73,140.63,18.03486358]
[1765397576293,0.05228707,140.73,140.58,261.1516]
[1765397576294,99.4805,140.72,140.61,18.03486358]
[1765397576491,105.876,140.72,140.61,18.03486358]
[1765397576991,0.04507579,140.68,140.65,0.04676144]
[1765397577590,99.4378,140.79,140.68,99.5084]
[1765397577782,99.3909,140.85,140.75,18.03486358]
[1765397577991,6.3892,140.85,140.75,18.03486358]
[1765397578178,99.3563,140.9,140.79,117.46556358]
[1765397578377,0.04580323,140.86,140.83,18.0873378]
[1765397578582,0.04580323,140.86,140.83,0.05247422]
[1765397579791,99.4033,140.83,140.71,99.4808]
[1765397580093,99.4033,140.83,140.74,18.03486358]
[1765397580290,6.3916,140.8,140.74,18.03486358]
[1765397580594,99.3891,140.85,140.74,18.03486358]
[1765397580886,0.04898137,140.81,140.78,0.05257355]
[1765397581091,99.4387,140.78,140.7,60.3]
[1765397581294,99.432,140.79,140.7,78.33486358]
[1765397581494,99.4194,140.81,140.7,78.33486358]
[1765397581692,6.3924,140.78,140.7,84.73056358]
[1765397582086,0.05434405,140.75,140.73,0.05091289]
[1765397582286,0.05435568,140.75,140.73,0.05091289]
[1765397582480,99.3891,140.85,140.74,18.03486358]
[1765397582686,99.3959,140.84,140.7,177.82456358]
[1765397582990,99.3959,140.84,140.73,18.03486358]
[1765397583182,100.63215642,140.84,140.69,18.03486358]
[1765397583383,6.3913,140.81,140.75,0.05419738]
[1765397583693,99.48437702,140.79,140.69,18.03486358]
[1765397583888,99.4337,140.79,140.69,18.03486358]
[1765397584085,99.438,140.78,140.66,18.03486358]
[1765397584291,99.4193,140.81,140.66,18.03486358]
[1765397584690,0.05328437,140.75,140.72,0.05304635]
[1765397584893,0.0487367,140.75,140.72,0.04702651]
[1765397585096,6.3892,140.86,140.74,18.03486358]
[1765397585293,99.3645,140.89,140.78,18.03486358]
[1765397585495,99.3683,140.88,140.74,18.03486358]
[1765397585795,6.3892,140.86,140.74,18.03486358]
[1765397585988,99.3897,140.85,140.74,18.03486358]
[1765397586195,0.04768296,140.81,140.7,18.03486358]
[1765397586396,6.3908,140.82,140.7,24.43086358]
[1765397586597,99.4101,140.82,140.7,18.03486358]
[1765397586798,99.424,140.8,140.67,60.28]
[1765397587091,6.3916,140.8,140.67,78.31486358]
[1765397587294,0.04905913,140.75,140.72,0.05154523]
[1765397587794,0.04905913,140.75,140.63,18.03486358]
[1765397587999,99.4223,140.81,140.67,18.03486358]
[1765397588205,99.4476,140.77,140.67,18.03486358]
[1765397588600,6.3939,140.75,140.63,24.43376358]
[1765397588906,0.04551972,140.7,140.68,0.04993215]
[1765397589099,99.4223,140.81,140.68,0.04949778]
[1765397589303,99.4238,140.8,140.65,99.5241]
[1765397589502,99.4238,140.8,140.68,18.03486358]
[1765397589807,6.3937,140.76,140.65,18.03486358]
[1765397590305,0.0523397,140.72,140.69,0.04928361]
[1765397590498,60.28,140.81,140.69,18.08601389]
[1765397590700,60.28,140.81,140.69,18.03486358]
[1765397590997,99.4317,140.79,140.65,18.03486358]
[1765397591506,0.04602351,140.73,140.71,0.05072181]
[1765397591693,0.04660167,140.73,140.71,0.05072181]
[1765397593806,99.4056,140.83,140.71,1.47072181]
[1765397594008,99.4101,140.82,140.65,99.5266]
[1765397594301,60.3,140.86,140.62,159.8296]
[1765397594302,99.3837,140.86,140.73,18.03486358]
[1765397594504,60.3,140.89,140.77,18.03486358]
[1765397594799,60.3,140.89,140.73,99.4694]
[1765397594800,0.04496605,140.84,140.82,0.04950139]
[1765397594998,6.44346552,140.84,140.82,0.04836524]
[1765397595805,0.05356552,140.84,140.82,0.04836524]
[1765397597603,6.44346552,140.84,140.82,0.04836524]
[1765397598206,99.4322,140.79,140.68,78.31486358]
[1765397598404,99.4398,140.78,140.68,78.31486358]
[1765397598605,6.3905,140.83,140.72,18.03486358]
[1765397598900,12.7729,140.92,140.8,18.03486358]
[1765397598901,99.3618,140.89,140.8,18.03486358]
[1765397599101,0.05400804,140.86,140.83,0.04512287]
[1765397602708,0.05400804,140.86,140.78,6.392]
[1765397602709,0.05400804,140.86,140.78,6.71992257]
[1765397603016,99.43850804,140.86,140.75,6.71992257]
[1765397603311,99.3919,140.85,140.72,6.71992257]
[1765397603711,0.05158609,140.8,140.77,6.4395929]
[1765397603912,0.04614381,140.8,140.77,0.04596748]
[1765397604210,99.3056,140.97,140.83,99.4019]
[1765397604409,99.2827,141.01,140.87,99.3739]
[1765397604609,104.2862,141.0,140.87,99.3739]
[1765397605108,0.04536257,140.95,140.92,0.05408722]
[1765397605703,0.04536257,140.95,140.72,60.26]
[1765397605904,99.3261,140.94,140.82,99.4095]
[1765397606115,6.3858,140.93,140.83,6.3898]
[1765397606511,99.3333,140.93,140.8,99.4236]
[1765397606709,0.04850644,140.88,140.85,0.04637551]
[1765397607110,6.43650644,140.88,140.74,6.394]
[1765397607315,6.388,140.88,140.74,99.4661]
[1765397607516,99.3642,140.89,140.74,99.4661]
[1765397607717,99.3816,140.86,140.74,6.3941]
[1765397607912,99.3887,140.85,140.7,99.4919]
[1765397608115,0.05234737,140.8,140.77,0.05256063]
[1765397608917,99.48004737,140.8,140.77,0.05256063]
[1765397609114,0.05234737,140.8,140.77,0.05256063]
[1765397609317,6.3923,140.79,140.77,0.05256063]
[1765397609518,99.4597,140.75,140.63,99.5421]
[1765397609714,99.4558,140.76,140.64,60.26]
[1765397610025,6.3926,140.78,140.69,6.3963]
[1765397610412,0.05408029,140.75,140.72,0.05321023]
[1765397611510,99.51738029,140.75,140.72,0.05321023]
[1765397611711,6.3945,140.74,140.72,0.05321023]
[1765397611909,99.374,140.88,140.73,99.4711]
[1765397612223,99.3747,140.87,140.74,99.4636]
[1765397612525,99.3331,140.93,140.8,99.4232]
[1765397612711,99.3545,140.9,140.8,19.2177089]
[1765397612919,0.00086089,140.86,140.84,0.04785375]
[1765397613223,99.3468,140.91,140.8,79.4777089]